[Event "46th OKU-B 2019"]
[Site "Utrecht"]
[Date "2019.06.01"]
[Round "4.6"]
[White "Neisingh, Nils"]
[Black "Gevorkjan, Lewon"]
[Result "1-0"]
[ECO "B32"]
[WhiteElo "1710"]
[BlackElo "1807"]
[Annotator "NA RC"]
[PlyCount "137"]
[EventDate "2019.05.31"]
[EventType "swiss"]
[EventCountry "NED"]
[SourceTitle "playchess.com"]
[Source "ChessBase"]
[SourceQuality "1"]
[TimeControl "6600+10"]

1. e4 {[%emt 0:00:00]} c5 {[%emt 0:00:01]} 2. Nf3 {[%emt 0:00:00]} Nc6 {[%emt 0:00:04]} 3. d4 {[%emt 0:00:11]} cxd4 {[%emt 0:00:06]} 4. Nxd4 {[%emt 0:00:04]} Qb6 {[%emt 0:00:31]} 5. Nb3 {[%emt 0:03:24]} d6 {[%emt 0:00:30]} (5... Nf6 6. Nc3 e6 7. Bd3 d6 8. f4 a6 9. Qe2 Qc7 10. O-O Be7 11. Bd2 b5 12. a4 b4 13. Nd1 O-O 14. Nf2 e5 15. f5 Rd8 16. Bg5 Bb7 17. Rae1 d5 18. Bxf6 Bxf6 {1-0 (53) Najer,E (2663)-Korobov,A (2694) Czech Republic 2018}) 6. Bd3 {[%emt 0:00:30] B32: Sicilian: Löwenthal and Kalashnikov Variations} g6 {[%emt 0:00:45]} 7. O-O {[%emt 0:00:39]} Bg7 {[%emt 0:00:06]} 8. Kh1 $146 {[%emt 0:00:36]} ({Predecessor:} 8. c4 Nf6 9. Be3 Qc7 10. Nc3 a6 11. Rc1 e6 12. Na4 Nd7 13. Qd2 {1-0 (46) Ruszin,T (2092)-Szalay,I (1734) Hungary 2003}) 8... Nf6 {[%emt 0:00:10]} 9. f4 {[%emt 0:00:33]} O-O {[%emt 0:00:45]} 10. Qe1 {[%emt 0:01:00]} Qc7 {[%emt 0:03:17]} 11. N1d2 {[%emt 0:02:41]} a6 {[%emt 0:00:00]} 12. Nf3 {[%emt 0:00:58]} b5 {[%emt 0:00:00]} 13. a3 {[%emt 0:00:46]} Nd7 {[%emt 0:00:00]} 14. Qh4 {[%emt 0:02:23]} Nb6 {[%emt 0:03:48]} 15. f5 {[%emt 0:09:59]} Ne5 {[%emt 0:02:05]} 16. Bh6 {[%emt 0:17:41]} Nxf3 {[%emt 0:02:42]} 17. Rxf3 {[%emt 0:01:03]} Bf6 {[%emt 0:02:15]} 18. Bg5 {[%emt 0:06:37]} Bxg5 {[%emt 0:04:20]} 19. Qxg5 {[%emt 0:01:31]} f6 {[%emt 0:02:28]} 20. Qh6 {[%emt 0:01:44]} Rf7 {[%emt 0:06:17]} 21. fxg6 {[%emt 0:04:59]} hxg6 {[%emt 0:00:10]} 22. Qxg6+ {[%emt 0:00:04]} Kf8 {[%emt 0:01:50]} 23. Rg3 {[%emt 0:04:36]} e5 {[%emt 0:00:52]} 24. Qg8+ {[%emt 0:00:41]} Ke7 {[%emt 0:00:09]} 25. Rg7 {[%emt 0:03:35]} Be6 {[%emt 0:00:36]} 26. Rxf7+ {[%emt 0:02:22]} Bxf7 {[%emt 0:00:34]} 27. Qh7 {[%emt 0:01:20]} Nd7 {[%emt 0:00:51]} (27... Nc4 $14) 28. Rf1 {[%emt 0:01:31]} Rg8 {[%emt 0:01:23]} 29. Nd2 {[%emt 0:09:25]} Rg6 {[%emt 0:03:40]} 30. Nf3 {[%emt 0:03:28]} Nf8 {[%emt 0:01:35]} 31. Qh8 {[%emt 0:01:45]} Rg8 {[%emt 0:01:57]} 32. Qh6 {[%emt 0:00:35]} Rg6 {[%emt 0:00:08]} 33. Qd2 {[%emt 0:00:42]} Be6 {[%emt 0:05:57]} 34. Nh4 {[%emt 0:01:11]} Rg5 {[%emt 0:00:19]} 35. Qb4 {[%emt 0:01:24]} Ng6 {[%emt 0:01:11]} 36. Nxg6+ {[%emt 0:01:02]} Rxg6 {[%emt 0:00:06]} 37. a4 {[%emt 0:00:33]} Bd7 {[%emt 0:00:59]} 38. axb5 {[%emt 0:00:57]} axb5 {[%emt 0:00:12]} 39. Qb3 {[%emt 0:00:50]} ({Better is} 39. h3) 39... Qb7 {[%emt 0:01:26]} 40. c4 {[%emt 0:02:52]} b4 {[%emt 0:00:20]} 41. Qc2 {[%emt 0:00:43]} (41. Qd1 $16) 41... Qc6 {[%emt 0:00:46]} (41... Qa7 $14) 42. b3 {[%emt 0:00:36]} (42. Qf2 $18 {and White stays clearly on top.}) 42... Qb6 {[%emt 0:01:05]} 43. Qf2 {[%emt 0:00:38]} Qa5 $2 {[%emt 0:00:50]} (43... Qd4 $14 44. Bc2 Qxf2 45. Rxf2 Rg8) 44. Qh4 {[%emt 0:01:10]} Be6 {[%emt 0:00:13]} 45. Qf2 $2 {[%emt 0:00:43]} (45. Qh7+ $18 Bf7 46. c5) 45... Qa3 $1 $11 {[%emt 0:01:31] [#]} 46. Qc2 $2 {[%emt 0:01:00]} (46. c5 $1 $18) 46... Qa7 {[%emt 0:00:23]} 47. Qf2 {[%emt 0:02:52]} (47. Qd2 $16) 47... Qa5 $18 {[%emt 0:01:29]} 48. Be2 {[%emt 0:03:58]} Qc7 {[%emt 0:06:27]} (48... Qa2 {was worth a try.} 49. h4 Rh6) 49. Qe3 {[%emt 0:00:37]} Rg5 {[%emt 0:05:35]} 50. h4 {[%emt 0:03:55]} Rg8 {[%emt 0:03:53]} 51. Qh6 {[%emt 0:00:42]} Qc8 {[%emt 0:02:31]} 52. Qxf6+ {[%emt 0:00:52]} Kd7 {[%emt 0:00:02]} 53. h5 {[%emt 0:00:38]} Kc6 {[%emt 0:00:09]} 54. c5 {[%emt 0:00:30]} dxc5 {[%emt 0:00:45]} 55. Qxe5 {[%emt 0:00:03]} Re8 {[%emt 0:02:21]} 56. Rf6 {[%emt 0:00:31]} Qd7 {[%emt 0:00:44]} 57. Bc4 {[%emt 0:01:55]} Kb7 {[%emt 0:01:30]} 58. Rxe6 {[%emt 0:00:11]} Rxe6 {[%emt 0:00:20]} 59. Bxe6 {[%emt 0:00:15]} Qd1+ {[%emt 0:01:00]} 60. Kh2 {[%emt 0:00:03]} c4 {[%emt 0:05:37]} 61. Bd5+ {[%emt 0:00:04]} Kc8 {[%emt 0:00:42]} 62. Bxc4 {[%emt 0:00:02]} Qe1 {[%emt 0:02:07]} 63. Qe8+ {[%emt 0:00:03]} Kc7 {[%emt 0:00:07]} 64. Qe7+ {[%emt 0:00:05]} Kc6 {[%emt 0:01:26]} 65. Qe6+ {[%emt 0:00:07]} Kc7 {[%emt 0:00:04]} 66. Qe7+ {[%emt 0:00:20]} Kc6 {[%emt 0:00:01]} 67. h6 {[%emt 0:00:05]} Qf2 {[%emt 0:00:16]} 68. Qe6+ {[%emt 0:00:07]} Kc7 {[%emt 0:00:06]} 69. Qf7+ {[%emt 0:00:12]} 1-0

[Event "46th OKU-B 2019"]
[Site "Utrecht"]
[Date "2019.06.01"]
[Round "4.7"]
[White "Van Nie, Pjotr"]
[Black "Heinen, Frank"]
[Result "1-0"]
[ECO "D92"]
[WhiteElo "1487"]
[BlackElo "1768"]
[Annotator "NA RC"]
[PlyCount "55"]
[EventDate "2019.05.31"]
[EventType "swiss"]
[EventCountry "NED"]
[SourceTitle "playchess.com"]
[Source "ChessBase"]
[SourceQuality "1"]
[TimeControl "6600+10"]

1. d4 {[%emt 0:00:00]} d5 {[%emt 0:09:52]} 2. Bf4 {[%emt 0:00:00]} Nf6 {[%emt 0:03:04]} 3. e3 {[%emt 0:00:07]} g6 {[%emt 0:00:59]} 4. Nf3 {[%emt 0:00:15]} Bg7 {[%emt 0:00:22]} 5. c4 {[%emt 0:00:28]} c6 {[%emt 0:03:23]} 6. Nc3 {[%emt 0:00:43]} e6 {[%emt 0:01:57]} 7. h3 {[%emt 0:03:24]} O-O {[%emt 0:00:52]} 8. Bd3 {[%emt 0:00:56]} dxc4 {[%emt 0:03:04]} 9. Bxc4 {[%emt 0:00:13]} Nd5 {[%emt 0:01:11]} 10. Nxd5 {[%emt 0:01:23]} exd5 {[%emt 0:00:38]} 11. Bd3 {[%emt 0:00:15]} c5 {[%emt 0:06:09]} 12. dxc5 {[%emt 0:04:55]} Bxb2 {[%emt 0:03:52]} 13. Rb1 {[%emt 0:00:07]} Qa5+ {[%emt 0:01:54]} 14. Nd2 {[%emt 0:00:42]} Bc3 {[%emt 0:04:02]} 15. Qc2 {[%emt 0:04:32]} Qxc5 {[%emt 0:12:23]} 16. Rb5 {[%emt 0:03:24]} Qc6 {[%emt 0:02:27]} 17. O-O {[%emt 0:02:38]} Bf5 {[%emt 0:07:33]} 18. Rfb1 {[%emt 0:10:06]} Bxd2 {[%emt 0:08:12]} 19. Qxd2 {[%emt 0:00:46]} Be6 {[%emt 0:06:03]} 20. Rxb7 {[%emt 0:02:21]} Nd7 {[%emt 0:00:59]} 21. Rc7 {[%emt 0:01:38]} Qa4 {[%emt 0:03:05]} 22. Bb5 {[%emt 0:01:19]} Qe4 {[%emt 0:01:36]} 23. Rb4 {[%emt 0:01:43]} Qf5 {[%emt 0:00:51]} 24. g4 {[%emt 0:01:42]} Qf6 {[%emt 0:00:21]} 25. Bxd7 {[%emt 0:00:49]} g5 {[%emt 0:02:44]} 26. Bg3 {[%emt 0:01:29]} h5 {[%emt 0:01:15]} 27. Qd4 {[%emt 0:01:06]} Qe7 {[%emt 0:01:58]} 28. Bc6 {[%emt 0:00:57]} 1-0

[Event "46th OKU-B 2019"]
[Site "Utrecht"]
[Date "2019.06.02"]
[Round "5.1"]
[White "Van de Lagemaat, Arend"]
[Black "Flohr, Ron"]
[Result "1/2-1/2"]
[ECO "B12"]
[WhiteElo "1855"]
[BlackElo "1883"]
[Annotator "NA"]
[PlyCount "68"]
[EventDate "2019.05.31"]
[EventType "swiss"]
[EventCountry "NED"]
[SourceTitle "playchess.com"]
[Source "ChessBase"]
[SourceQuality "1"]
[TimeControl "6600+10"]

1. e4 {[%emt 0:00:00]} d6 {[%emt 0:00:13]} 2. d4 {[%emt 0:02:16]} Nd7 {[%emt 0:00:10]} 3. Nc3 {[%emt 0:00:31]} c6 {[%emt 0:00:08]} 4. Nf3 {[%emt 0:00:46]} Qa5 {[%emt 0:00:46]} 5. a4 {[%emt 0:05:06]} h6 {[%emt 0:02:23]} 6. Be3 {[%emt 0:02:44]} g5 {[%emt 0:00:44]} (6... Ngf6 $142) 7. h3 {[%emt 0:02:06]} Bg7 {[%emt 0:00:14]} 8. Qd2 {[%emt 0:01:36]} Nf8 {[%emt 0:00:18]} 9. Be2 {[%emt 0:05:16]} Ng6 {[%emt 0:01:23]} 10. Rb1 {[%emt 0:01:11]} Qc7 {[%emt 0:00:30]} 11. b4 {[%emt 0:00:54]} Nf6 {[%emt 0:04:39]} 12. b5 {[%emt 0:02:59]} g4 {[%emt 0:05:34]} 13. Ng1 {[%emt 0:02:37]} Nh4 {[%emt 0:04:57]} 14. Kf1 {[%emt 0:01:26]} gxh3 {[%emt 0:02:58]} 15. Nxh3 {[%emt 0:00:41]} Ng6 {[%emt 0:03:00]} 16. g3 {[%emt 0:03:16]} Ng4 {[%emt 0:03:56]} 17. Bxg4 {[%emt 0:03:18]} Bxg4 {[%emt 0:00:09]} 18. Kg2 {[%emt 0:00:40]} e5 {[%emt 0:05:07]} 19. f3 {[%emt 0:06:25]} Bd7 {[%emt 0:01:08]} 20. Nf2 {[%emt 0:05:00]} h5 {[%emt 0:01:59]} 21. dxe5 {[%emt 0:04:36]} Nxe5 {[%emt 0:01:38]} 22. Bf4 {[%emt 0:02:25]} Nc4 {[%emt 0:05:50]} 23. Qd3 {[%emt 0:00:00]} Be6 {[%emt 0:01:33]} 24. Ncd1 {[%emt 0:10:20]} Be5 {[%emt 0:11:51]} 25. Bxe5 {[%emt 0:01:30]} dxe5 {[%emt 0:00:36]} 26. Ne3 {[%emt 0:01:30]} Nxe3+ {[%emt 0:02:33]} 27. Qxe3 {[%emt 0:00:17]} f6 {[%emt 0:04:30]} 28. Qc5 {[%emt 0:04:55]} Kf7 {[%emt 0:03:00]} 29. bxc6 {[%emt 0:02:12]} bxc6 {[%emt 0:00:25]} 30. a5 {[%emt 0:00:47]} Kg6 $16 {[%emt 0:01:39]} 31. Rhd1 {[%emt 0:06:38]} Rad8 {[%emt 0:03:29]} 32. a6 {[%emt 0:03:59]} Bc8 {[%emt 0:00:37]} 33. Qc4 {[%emt 0:03:22]} h4 {[%emt 0:01:08]} 34. g4 {[%emt 0:00:06]} Rd4 {[%emt 0:00:05]} 1/2-1/2

[Event "46th OKU-B 2019"]
[Site "Utrecht"]
[Date "2019.06.02"]
[Round "5.2"]
[White "De Dreu, Dies"]
[Black "Aguado Garcia, Pablo"]
[Result "1-0"]
[ECO "D15"]
[WhiteElo "1761"]
[BlackElo "1890"]
[Annotator "NA"]
[PlyCount "61"]
[EventDate "2019.05.31"]
[EventType "swiss"]
[EventCountry "NED"]
[SourceTitle "playchess.com"]
[Source "ChessBase"]
[SourceQuality "1"]
[TimeControl "6600+10"]

1. d4 {[%emt 0:12:46]} Nf6 {[%emt 0:00:05]} 2. Nf3 {[%emt 0:00:19]} d5 {[%emt 0:00:05]} 3. c4 {[%emt 0:00:22]} c6 {[%emt 0:03:35]} 4. Nc3 {[%emt 0:00:57]} dxc4 {[%emt 0:00:06]} 5. e3 {[%emt 0:00:31]} b5 {[%emt 0:02:34]} 6. a4 {[%emt 0:01:11]} Bd7 {[%emt 0:08:54] D15: Slav Defence: 4 Nc3 a6 and gambit lines after 4 Nc3 dxc4} (6... b4 7. Na2 e6 8. Bxc4 Nbd7 9. O-O Bd6 10. b3 Bb7 11. Bb2 O-O 12. Nc1 c5 13. Nd3 a5 14. Rc1 Rc8 15. Qe2 cxd4 16. Nxd4 Nc5 17. Nxc5 Rxc5 18. Nb5 Bb8 19. Rfd1 Qe7 20. f3 Rfc8 21. Bd3 Rxc1 22. Rxc1 Rxc1+ {½-½ (22) Demuth,A (2538)-Libiszewski,F (2530) Palmerston North 2018}) 7. Be2 {[%emt 0:04:30]} e6 {[%emt 0:01:42]} 8. Ne5 {[%emt 0:06:13]} Bb4 {[%emt 0:09:41]} (8... b4 $11) 9. O-O {[%emt 0:03:45]} a5 $146 {[%emt 0:22:18]} ({Predecessor:} 9... Bxc3 10. bxc3 Nd5 11. Qc2 a5 12. e4 Nb6 13. Ba3 Nxa4 14. Nxc4 bxc4 15. Qxa4 {1-0 (21) Biller,H (2088)-Kleist,W (1815) Sooden Allendorf 2015}) 10. Bf3 {[%emt 0:08:44]} Ra7 {[%emt 0:00:58]} 11. e4 {[%emt 0:05:50]} O-O {[%emt 0:01:23]} 12. axb5 {[%emt 0:08:30]} cxb5 {[%emt 0:00:07]} 13. Be3 {[%emt 0:01:57]} Ra8 {[%emt 0:14:49]} 14. Bg5 {[%emt 0:04:31]} Be7 {[%emt 0:01:39]} 15. Bxf6 {[%emt 0:05:48]} gxf6 {[%emt 0:00:20]} 16. Nxd7 {[%emt 0:01:28]} Qxd7 {[%emt 0:00:05]} 17. e5 {[%emt 0:03:04]} Ra7 {[%emt 0:02:37]} 18. exf6 {[%emt 0:00:57]} Bxf6 {[%emt 0:00:04]} 19. Be4 {[%emt 0:05:59]} b4 {[%emt 0:11:44]} 20. Qh5 {[%emt 0:03:11]} Rd8 {[%emt 0:04:05]} 21. Qxh7+ {[%emt 0:01:37]} Kf8 {[%emt 0:00:05]} 22. Ne2 {[%emt 0:00:28]} Bxd4 $16 {[%emt 0:06:28]} (22... Nc6 $17 {keeps the pressure on.} 23. Rad1 Nxd4 24. Nxd4 Bxd4 25. Qh6+ Ke8) 23. Rad1 {[%emt 0:01:54]} f5 {[%emt 0:00:45]} 24. Qh4 {[%emt 0:02:57]} fxe4 {[%emt 0:00:43]} 25. Rxd4 {[%emt 0:00:33]} Nc6 {[%emt 0:03:14]} 26. Rxd7 {[%emt 0:01:31]} Raxd7 {[%emt 0:00:34]} 27. Qf6+ {[%emt 0:00:39]} Rf7 {[%emt 0:01:39]} 28. Qxe6 {[%emt 0:00:37]} Nd4 {[%emt 0:01:40]} 29. Qxc4 {[%emt 0:01:31]} Rfd7 {[%emt 0:02:40]} 30. Nxd4 {[%emt 0:00:31]} Rxd4 {[%emt 0:00:05]} 31. Qc5+ {[%emt 0:00:26]} 1-0

[Event "46th OKU-B 2019"]
[Site "Utrecht"]
[Date "2019.06.02"]
[Round "5.3"]
[White "Scholten, Marcel"]
[Black "Krouwel, Robert"]
[Result "1/2-1/2"]
[ECO "A55"]
[WhiteElo "1747"]
[BlackElo "1841"]
[Annotator "NA"]
[PlyCount "74"]
[EventDate "2019.05.31"]
[EventType "swiss"]
[EventCountry "NED"]
[SourceTitle "playchess.com"]
[Source "ChessBase"]
[SourceQuality "1"]
[TimeControl "6600+10"]

1. d4 {[%emt 0:00:00]} Nf6 {[%emt 0:00:00]} 2. Nf3 {[%emt 0:00:00]} d6 {[%emt 0:00:02]} 3. c4 {[%emt 0:00:14]} Nbd7 {[%emt 0:00:05]} 4. Nc3 {[%emt 0:00:18]} e5 {[%emt 0:00:05]} 5. dxe5 {[%emt 0:00:39]} dxe5 {[%emt 0:00:07]} 6. e4 {[%emt 0:00:35]} (6. Qc2 $11) 6... c6 {[%emt 0:00:08]} (6... Bb4 $15 7. Qc2 Bxc3+ 8. Qxc3 Nxe4) 7. Bg5 {[%emt 0:00:47] A55: Old Indian Defence with Nf3 and e4} Be7 {[%emt 0:00:14]} 8. Qc2 {[%emt 0:01:37]} Qc7 {[%emt 0:00:11]} 9. g3 $146 {[%emt 0:01:10]} ({Predecessor:} 9. Rc1 O-O 10. Be2 Re8 11. O-O Nf8 12. h3 Ne6 13. Be3 g6 14. Rfd1 Nh5 {0-1 (54) Rodriguez Sanchez,J (1604)-Martin Consuegra,B (1818) Collado Villalba 2017}) 9... Nf8 {[%emt 0:00:08]} 10. Bg2 {[%emt 0:00:28]} Ng6 {[%emt 0:03:04]} 11. O-O {[%emt 0:01:03]} O-O {[%emt 0:00:14]} 12. Rfd1 {[%emt 0:01:42]} Be6 {[%emt 0:00:32]} 13. b3 {[%emt 0:01:53]} Rfd8 {[%emt 0:00:47]} 14. Na4 {[%emt 0:04:53]} b6 {[%emt 0:01:04]} 15. Qe2 {[%emt 0:01:44]} Rxd1+ {[%emt 0:03:12]} 16. Rxd1 {[%emt 0:01:09]} Rd8 {[%emt 0:00:08]} 17. Rxd8+ {[%emt 0:03:08]} Qxd8 {[%emt 0:03:03]} 18. Nb2 {[%emt 0:00:19]} h6 {[%emt 0:00:33]} 19. Bd2 {[%emt 0:02:03]} Qd7 {[%emt 0:06:22]} 20. Nd3 {[%emt 0:02:21]} Bg4 {[%emt 0:11:14]} 21. Bc3 {[%emt 0:03:56]} Qc7 {[%emt 0:05:59]} 22. h3 {[%emt 0:01:49]} Bxf3 {[%emt 0:00:06]} 23. Bxf3 {[%emt 0:00:34]} Nd7 {[%emt 0:02:55]} 24. h4 {[%emt 0:02:54]} Bd6 {[%emt 0:14:33]} 25. Bg4 {[%emt 0:02:41]} Ngf8 {[%emt 0:00:07]} 26. Nb4 {[%emt 0:03:26]} Nc5 {[%emt 0:03:54]} 27. Nc2 {[%emt 0:01:28]} Nce6 {[%emt 0:00:31]} 28. Qd2 {[%emt 0:04:20]} c5 {[%emt 0:04:36]} 29. Qd5 {[%emt 0:03:36]} Nd4 {[%emt 0:03:22]} 30. Ne3 {[%emt 0:02:21]} Nfe6 {[%emt 0:01:18]} 31. Qa8+ {[%emt 0:02:36]} Qb8 {[%emt 0:00:51]} 32. Qxb8+ {[%emt 0:02:14]} Bxb8 {[%emt 0:00:07]} 33. Nd5 {[%emt 0:08:46]} Bd6 {[%emt 0:00:42]} 34. Bd2 {[%emt 0:01:11]} Nc7 $14 {[%emt 0:05:58]} 35. f4 {[%emt 0:02:19]} Nxd5 {[%emt 0:00:31]} 36. cxd5 {[%emt 0:00:36]} f6 {[%emt 0:00:30]} 37. Kf2 {[%emt 0:05:50]} Kf7 {[%emt 0:00:46] Ke2 [%emt 00:04:13]} 1/2-1/2

[Event "46th OKU-B 2019"]
[Site "Utrecht"]
[Date "2019.06.02"]
[Round "5.4"]
[White "Van Nie, Pjotr"]
[Black "Boittin, Pascal"]
[Result "1/2-1/2"]
[ECO "B13"]
[WhiteElo "1487"]
[BlackElo "1838"]
[Annotator "NA"]
[PlyCount "52"]
[EventDate "2019.05.31"]
[EventType "swiss"]
[EventCountry "NED"]
[SourceTitle "playchess.com"]
[Source "ChessBase"]
[SourceQuality "1"]
[TimeControl "6600+10"]

{[%evp 9,52,-1,32767,6,32767,32767,32767,32767,47,32767,49,32767,58,32767,50,52,60,43,32767,32767,27,20,32767,32767,36,32767,32767,31,60,41,32767,32767,32767,32767,32767,8,18,11,0,32767,32767,32767,32767,32767,0]} 1. d4 {[%emt 0:02:11]} (1. e4 c6 2. d4 d5 3. exd5 cxd5 4. Bd3 Nc6 5. c3 Nf6 6. Bf4 e6 7. Nf3 Bd6 8. Bxd6 Qxd6 9. O-O O-O {½-½ (10) Rasulov,V (2509)-Benidze,D (2476) Canakkale 2017}) 1... d5 {[%emt 0:00:23]} 2. Bf4 {[%emt 0:00:10]} c5 {[%emt 0:01:09]} 3. c3 {[%emt 0:01:11]} Nc6 {[%emt 0:01:59]} 4. e3 {[%emt 0:01:21]} Nf6 {[%emt 0:01:15]} 5. Nf3 {[%emt 0:00:46]} e6 {[%emt 0:02:20]} 6. Nbd2 {[%emt 0:00:45]} cxd4 {[%emt 0:00:25]} 7. exd4 {[%emt 0:00:19]} Bd6 {[%emt 0:00:25]} 8. Bxd6 {[%emt 0:01:07]} Qxd6 {[%emt 0:00:08]} 9. Bd3 {[%emt 0:00:28]} O-O {[%emt 0:00:46]} 10. O-O {[%emt 0:00:14]} e5 {[%emt 0:00:27] B13: Caro-Kann: Exchange Variation and Panov-Botvinnik Attack} 11. dxe5 {[%emt 0:00:41]} Nxe5 {[%emt 0:00:08]} 12. Nxe5 {[%emt 0:00:24]} Qxe5 {[%emt 0:00:09]} 13. Nf3 {[%emt 0:00:33]} Qc7 {[%emt 0:15:03]} 14. Re1 {[%emt 0:03:29]} Bg4 {[%emt 0:05:34]} 15. h3 {[%emt 0:01:00]} Bh5 {[%emt 0:00:57]} 16. g4 $146 {[%emt 0:02:49]} ({Predecessor:} 16. Be2 Bg6 17. Nd4 Rad8 18. Bd3 {0-1 (27) Silveira,C-Guisande,F (1903) Montevideo 2017}) 16... Bg6 {[%emt 0:00:18]} 17. Bxg6 {[%emt 0:00:21]} hxg6 {[%emt 0:00:05]} 18. Qd4 {[%emt 0:04:28]} b6 {[%emt 0:09:02]} 19. Re5 {[%emt 0:04:32]} Rae8 {[%emt 0:03:23]} 20. Rae1 {[%emt 0:03:48]} Rxe5 {[%emt 0:00:52]} 21. Rxe5 {[%emt 0:00:43]} Rd8 {[%emt 0:00:36]} 22. Ng5 {[%emt 0:07:14]} (22. g5 $14 Nh5 23. Qe3 (23. Rxd5 Rxd5 24. Qxd5 Nf4 $11)) 22... Qc4 {[%emt 0:08:12]} 23. Qxc4 {[%emt 0:05:39]} dxc4 {[%emt 0:00:10]} 24. Re7 {[%emt 0:00:08]} Rd7 {[%emt 0:00:15]} 25. Rxd7 {[%emt 0:00:18]} Nxd7 {[%emt 0:00:15]} 26. Ne4 {[%emt 0:00:08]} b5 $11 {[%emt 0:03:32]} 1/2-1/2

[Event "46th OKU-B 2019"]
[Site "Utrecht"]
[Date "2019.06.02"]
[Round "5.5"]
[White "Van Aken, Jelmer"]
[Black "Manschot, Thomas"]
[Result "1-0"]
[ECO "C01"]
[WhiteElo "1698"]
[BlackElo "1803"]
[Annotator "NA"]
[PlyCount "77"]
[EventDate "2019.05.31"]
[EventType "swiss"]
[EventCountry "NED"]
[SourceTitle "playchess.com"]
[Source "ChessBase"]
[SourceQuality "1"]
[TimeControl "6600+10"]

1. e4 {[%emt 0:00:00]} e6 {[%emt 0:00:00]} 2. d4 {[%emt 0:00:00]} d5 {[%emt 0:00:00]} 3. Nc3 {[%emt 0:00:00]} Bb4 {[%emt 0:00:06]} 4. exd5 {[%emt 0:00:04]} exd5 {[%emt 0:00:07]} 5. Bd3 {[%emt 0:00:15]} Nf6 {[%emt 0:03:31]} 6. Bf4 {[%emt 0:02:14] C01: French: Exchange Variation} (6. Nge2 O-O 7. O-O c6 8. Bg5 h6 9. Bh4 Re8 10. f3 Nbd7 11. Qd2 Nf8 12. Rae1 Bd6 13. Bg3 Ng6 14. Bxd6 Qxd6 15. Bxg6 fxg6 {1-0 (39) Aronian,L (2767)-Caruana,F (2822) chess.com INT 2018}) 6... O-O {[%emt 0:04:36]} 7. Nge2 {[%emt 0:01:34]} Re8 {[%emt 0:16:27]} 8. O-O {[%emt 0:00:51]} c6 {[%emt 0:02:09]} 9. a3 {[%emt 0:04:26]} Bd6 {[%emt 0:02:45]} 10. Qd2 {[%emt 0:01:56]} Ne4 {[%emt 0:11:13]} 11. Bxe4 $146 {[%emt 0:02:17]} ({Predecessor:} 11. Qc1 Bf5 12. Nxe4 dxe4 13. Bc4 Qf6 14. Bxd6 Qxd6 {½-½ (45) Mucha,A (2012)-Dengler,D (2146) Germany 2009}) 11... dxe4 {[%emt 0:00:45]} 12. Ng3 {[%emt 0:01:54]} f5 {[%emt 0:02:42]} 13. d5 {[%emt 0:02:29]} Qc7 {[%emt 0:14:20]} 14. Bxd6 {[%emt 0:06:29]} Qxd6 {[%emt 0:00:17]} 15. Rad1 {[%emt 0:00:18]} cxd5 {[%emt 0:13:44]} 16. Qg5 {[%emt 0:06:12]} Qe7 {[%emt 0:10:33]} 17. Qxe7 {[%emt 0:02:18]} Rxe7 {[%emt 0:00:15]} 18. Nxd5 {[%emt 0:00:13]} ({Don't play} 18. Rxd5 $6 Rf7 $16) 18... Rf7 {[%emt 0:00:10] [#]} 19. Ne7+ $18 {[%emt 0:01:25]} Rxe7 {[%emt 0:05:45]} 20. Rd8+ {[%emt 0:00:08]} Kf7 {[%emt 0:00:19]} 21. Rxc8 {[%emt 0:00:07]} g6 {[%emt 0:07:29]} 22. Rd1 {[%emt 0:03:01]} Re8 {[%emt 0:00:12]} 23. Rdd8 {[%emt 0:00:22]} Rxd8 {[%emt 0:00:05]} 24. Rxd8 {[%emt 0:00:04]} Ke7 {[%emt 0:00:06]} 25. Rh8 {[%emt 0:00:17]} a5 {[%emt 0:00:04]} 26. Rxh7+ {[%emt 0:00:35]} Kd6 {[%emt 0:02:38]} 27. Rg7 {[%emt 0:01:53]} Nc6 {[%emt 0:00:50]} 28. Rxg6+ {[%emt 0:00:29]} Ke5 {[%emt 0:00:06]} 29. h4 {[%emt 0:02:58]} Nd4 {[%emt 0:04:38]} 30. c3 {[%emt 0:00:42]} Ne6 {[%emt 0:00:09]} 31. h5 {[%emt 0:01:18]} Rh8 {[%emt 0:01:09]} 32. h6 {[%emt 0:02:01]} f4 {[%emt 0:04:52]} 33. Nh5 {[%emt 0:03:59]} e3 {[%emt 0:01:23]} 34. Kf1 {[%emt 0:02:27]} Kf5 {[%emt 0:00:52]} 35. Rf6+ {[%emt 0:00:45]} Kg5 {[%emt 0:00:03]} 36. Rxe6 {[%emt 0:00:19]} Kxh5 {[%emt 0:00:01]} 37. fxe3 {[%emt 0:00:37]} fxe3 {[%emt 0:00:14]} 38. Rxe3 {[%emt 0:00:22]} Rf8+ {[%emt 0:00:02]} 39. Rf3 {[%emt 0:00:09]} 1-0